bitfinex/quotes_SOLUSD_20250811
["timestamp","ask_amount","ask_price","bid_price","bid_amount"]
[1754928433120,9.26870354,181.67,181.61,26.0]
[1754928433291,9.26870354,181.66,181.61,9.26870354]
[1754928433494,0.7,181.65,181.61,9.26870354]
[1754928433992,5.50539528,181.64,181.6,9.26870354]
[1754928434192,5.50539528,181.64,181.62,9.26870354]
[1754928434607,5.50539528,181.64,181.63,9.26870354]
[1754928434827,5.50539528,181.64,181.62,0.72]
[1754928434996,5.50539528,181.64,181.59,26.72]
[1754928435191,5.50539528,181.64,181.59,0.72]
[1754928435396,5.50539528,181.64,181.61,9.26870354]
[1754928435622,5.50509152,181.66,181.63,9.26870354]
[1754928435813,5.50445582,181.68,181.65,9.26870354]
[1754928435997,13.75914732,181.7,181.67,9.26870354]
[1754928436322,13.75914732,181.7,181.65,0.72]
[1754928436631,0.7,181.69,181.62,0.72]
[1754928436840,5.50327444,181.71,181.68,9.26870354]
[1754928437002,5.50327444,181.71,181.7,9.26870354]
[1754928437203,5.50236601,181.74,181.7,9.26870354]
[1754928437501,6.20236601,181.74,181.71,9.26870354]
[1754928437803,6.20236601,181.74,181.68,0.72]
[1754928438024,6.20236601,181.74,181.72,9.26870354]
[1754928438234,5.50236601,181.74,181.72,9.26870354]
[1754928438427,5.50236601,181.74,181.73,9.26870354]
[1754928439442,5.50213338,181.75,181.72,9.26870354]
[1754928439637,0.7,181.74,181.69,0.72]
[1754928439940,0.7,181.74,181.71,9.26870354]
[1754928440132,5.50266879,181.73,181.72,9.26870354]
[1754928440540,5.50266879,181.73,181.69,0.72]
[1754928440740,5.50266879,181.73,181.72,9.26870354]
[1754928441118,5.50266879,181.73,181.63,31.50544646]
[1754928441318,5.50266879,181.73,181.61,0.06]
[1754928441319,0.7,181.72,181.61,0.06]
[1754928441519,44.46,181.71,181.61,0.06]
[1754928441723,9.26870354,181.63,181.61,0.06]
[1754928442119,6.20600154,181.62,181.61,0.06]
[1754928442423,6.20600154,181.62,181.54,0.06]
[1754928442424,29.23970893,181.62,181.54,0.06]
[1754928442617,9.26870354,181.55,181.54,0.06]
[1754928442817,0.7,181.61,181.54,0.06]
[1754928443019,9.26870354,181.55,181.54,0.06]
[1754928443246,0.7,181.58,181.54,0.06]
[1754928443547,9.26870354,181.57,181.54,0.06]
[1754928443842,9.26870354,181.6,181.55,9.26870354]
[1754928444025,5.50660792,181.6,181.57,9.26870354]
[1754928444228,5.50660792,181.6,181.58,9.26870354]
[1754928444548,5.50621441,181.62,181.59,9.26870354]
[1754928444847,5.50621441,181.62,181.6,9.26870354]
[1754928445137,0.7,181.64,181.58,0.71]
[1754928445138,5.50567454,181.64,181.58,0.71]
[1754928445347,0.7,181.67,181.56,5.50777372]
[1754928445348,5.50478916,181.66,181.62,9.26870354]
[1754928445544,5.50478916,181.66,181.6,0.71]
[1754928445839,5.50478916,181.66,181.63,9.26870354]
[1754928446044,0.7,181.66,181.6,0.71]
[1754928446232,13.975591,181.65,181.6,13.975591]
[1754928446425,0.7,181.64,181.6,13.975591]
[1754928447429,6.20448615,181.67,181.62,13.975591]
[1754928447630,0.7,181.66,181.62,13.975591]
[1754928448123,5.50448615,181.67,181.62,0.71]
[1754928448331,6.20448615,181.67,181.64,13.975591]
[1754928448718,140.0,181.66,181.64,13.975591]
[1754928448948,140.03,181.66,181.64,13.975591]
[1754928449147,140.03,181.66,181.63,13.975591]
[1754928449643,13.975591,181.64,181.61,0.5]
[1754928449848,13.975591,181.64,181.58,0.06]
[1754928449849,13.975591,181.62,181.58,0.06]
[1754928450223,13.975591,181.63,181.58,14.745591]
[1754928450426,0.7,181.65,181.59,13.975591]
[1754928450626,0.7,181.65,181.58,14.035591]
[1754928450929,13.975591,181.59,181.58,0.06]
[1754928451330,14.675591,181.59,181.58,0.06]
[1754928451545,20.18250217,181.59,181.58,0.06]
[1754928451931,6.20691117,181.59,181.58,0.06]
[1754928452132,20.18250217,181.59,181.58,0.06]
[1754928452943,19.48250217,181.59,181.58,0.06]
[1754928453344,20.18250217,181.59,181.58,0.06]
[1754928454026,6.20691117,181.59,181.58,0.06]
[1754928454226,6.20691117,181.59,181.54,0.06]
[1754928454227,33.9497801,181.59,181.54,0.06]
[1754928454423,13.975591,181.55,181.54,0.06]
[1754928455457,6.20812448,181.55,181.54,0.06]
[1754928455627,5.50812448,181.55,181.54,0.06]
[1754928455833,145.50812448,181.55,181.54,0.06]
[1754928456049,5.50751776,181.57,181.54,0.06]
[1754928456248,0.7,181.55,181.54,0.06]
[1754928456444,13.975591,181.55,181.54,0.06]
[1754928456761,13.975591,181.56,181.54,0.06]
[1754928457054,5.50751776,181.57,181.54,0.06]
[1754928457236,13.975591,181.55,181.54,0.06]
[1754928457639,20.18371548,181.55,181.54,0.06]
[1754928459148,19.48371548,181.55,181.54,0.06]
[1754928459355,5.50812448,181.55,181.54,0.06]
[1754928459539,13.975591,181.55,181.54,0.06]
[1754928459736,13.76538317,181.62,181.54,14.745591]
[1754928459937,6.2051503,181.65,181.6,13.975591]
[1754928460155,44.98,181.63,181.6,0.71]
[1754928460559,19.5104307,181.66,181.61,14.685591]
[1754928460738,13.975591,181.64,181.6,13.975591]
[1754928461056,59.615591,181.65,181.6,0.71]
[1754928461247,59.615591,181.65,181.6,14.685591]
[1754928461454,44.94,181.65,181.61,14.685591]
[1754928461869,0.03,181.66,181.62,0.71]
[1754928462069,140.03,181.66,181.64,13.975591]
[1754928462377,140.03,181.66,181.62,0.71]
[1754928462378,146.23494262,181.66,181.63,13.975591]
[1754928462572,146.23494262,181.66,181.59,6.21685284]
[1754928463452,190.39494262,181.66,181.63,13.975591]
[1754928463657,190.39494262,181.66,181.64,13.975591]
[1754928463969,140.03,181.66,181.63,13.975591]
[1754928464175,184.85,181.66,181.63,13.975591]
[1754928464672,0.03,181.66,181.65,13.975591]
[1754928465172,0.03,181.66,181.64,13.975591]
[1754928465374,5.53480954,181.66,181.63,13.975591]
[1754928465551,0.03,181.66,181.64,13.975591]
[1754928465747,0.03,181.66,181.65,13.975591]
[1754928465949,0.03,181.66,181.64,13.975591]
[1754928466365,0.03,181.66,181.63,13.975591]
[1754928466651,0.03,181.66,181.64,13.975591]
[1754928467273,0.03,181.66,181.62,0.71]
[1754928467569,140.03,181.66,181.64,13.975591]
[1754928468171,0.03,181.66,181.65,9.96659576]
[1754928468374,0.03,181.66,181.65,0.71]
[1754928468577,0.03,181.66,181.65,9.96659576]
[1754928469452,0.03,181.66,181.65,0.71]
[1754928469775,0.03,181.66,181.65,9.96659576]
[1754928470676,0.03,181.66,181.65,9.25659576]
[1754928471075,0.03,181.66,181.65,9.96659576]
[1754928471287,0.03,181.66,181.65,9.25659576]
[1754928471982,0.03,181.66,181.65,9.96659576]
[1754928472173,0.03,181.66,181.63,0.71]
[1754928472551,0.03,181.66,181.65,9.25659576]
[1754928473053,0.03,181.66,181.65,9.91659576]
[1754928473554,0.03,181.66,181.65,15.42168797]
[1754928473749,0.03,181.66,181.65,9.91659576]
[1754928473981,0.03,181.66,181.65,0.66]
[1754928474279,0.03,181.66,181.65,9.91659576]
[1754928475855,0.03,181.66,181.65,6.16509221]
[1754928476178,0.03,181.66,181.62,6.16572374]
[1754928476560,0.03,181.66,181.65,9.25659576]
[1754928476965,0.03,181.66,181.65,9.91659576]
[1754928477560,0.03,181.66,181.65,9.25659576]
[1754928477765,0.03,181.66,181.64,9.25659576]
[1754928477984,0.03,181.66,181.63,9.91659576]
[1754928478193,0.03,181.66,181.59,26.0]
[1754928478490,9.28659576,181.66,181.61,9.25659576]
[1754928478679,0.68,181.65,181.62,9.25659576]
[1754928479381,0.03,181.66,181.63,9.25659576]
[1754928479591,0.03,181.66,181.64,9.25659576]
[1754928479803,0.03,181.66,181.65,9.25659576]
[1754928480662,0.03,181.66,181.64,0.66]
[1754928480866,0.03,181.66,181.65,9.25659576]
[1754928481173,0.03,181.66,181.65,9.91659576]
[1754928482586,0.03,181.66,181.65,15.42168797]
[1754928482787,0.03,181.66,181.65,9.91659576]
[1754928483368,0.03,181.66,181.65,15.42168797]
[1754928483766,0.03,181.66,181.65,9.91659576]
[1754928484167,0.03,181.66,181.65,15.42168797]
[1754928484370,0.03,181.66,181.65,0.66]
[1754928484586,0.03,181.66,181.65,9.91659576]
[1754928484903,0.03,181.66,181.65,26.66]
[1754928485194,0.03,181.66,181.62,0.66]
[1754928485395,0.03,181.66,181.63,9.25659576]
[1754928485571,6.2149808,181.66,181.62,9.25659576]
[1754928485768,6.2149808,181.66,181.61,44.48]
[1754928485992,5.5349808,181.66,181.63,9.25659576]
[1754928486192,0.03,181.66,181.65,9.25659576]
[1754928486394,0.03,181.66,181.65,9.91659576]
[1754928486596,0.03,181.66,181.65,9.25659576]
[1754928487416,0.03,181.66,181.65,53.69659576]
[1754928487795,0.03,181.66,181.65,59.20168797]
[1754928488191,0.03,181.66,181.65,49.94509221]
[1754928488395,0.03,181.66,181.58,13.76760879]
[1754928488696,0.03,181.66,181.65,9.25659576]
[1754928489508,0.03,181.66,181.57,44.38]
[1754928489712,5.50509221,181.65,181.61,9.25659576]
[1754928489884,5.50509221,181.65,181.63,9.25659576]
[1754928490393,0.03,181.66,181.64,13.9754435]
[1754928490592,0.03,181.66,181.65,13.9754435]
[1754928491381,19.29677885,181.66,181.59,13.9754435]
[1754928491583,33.27222235,181.66,181.61,13.9754435]
[1754928491796,0.03,181.66,181.64,13.9754435]
[1754928492008,0.03,181.66,181.65,13.9754435]
[1754928492410,0.03,181.66,181.63,26.0]
[1754928492603,0.03,181.66,181.65,13.9754435]
[1754928494036,0.03,181.66,181.65,19.48053571]
[1754928494195,0.03,181.66,181.65,25.01418371]
[1754928494401,0.03,181.66,181.65,69.29418371]
[1754928494598,0.03,181.66,181.65,95.29418371]
[1754928497614,0.03,181.66,181.65,113.18873202]
[1754928498837,0.03,181.66,181.65,95.29418371]
[1754928499013,0.03,181.66,181.65,95.11418371]
[1754928499218,0.03,181.66,181.65,51.01418371]
[1754928499424,0.03,181.66,181.65,95.11418371]
[1754928500722,0.03,181.66,181.65,19.5090915]
[1754928500927,0.03,181.66,181.63,44.02]
[1754928501132,14.0054435,181.66,181.57,5.50751776]
[1754928501338,0.03,181.66,181.6,2.20416]
[1754928501843,0.03,181.66,181.64,13.9754435]
[1754928502027,0.03,181.66,181.6,2.20416]
[1754928502343,0.03,181.66,181.63,13.9754435]
[1754928502542,0.03,181.66,181.59,39.975443]
[1754928502721,14.0054435,181.66,181.59,26.0]
[1754928502919,14.0054435,181.66,181.61,13.9754435]
[1754928503240,13.9754435,181.65,181.6,13.9754435]
[1754928503541,14.0054435,181.66,181.61,13.9754435]
[1754928503744,0.03,181.66,181.64,13.9754435]
[1754928504247,13.9754435,181.65,181.59,43.92]
[1754928504423,13.9754435,181.65,181.6,13.9754435]
[1754928504632,33.27220557,181.66,181.61,13.9754435]
[1754928505145,19.29676207,181.66,181.56,0.06]
[1754928505379,13.9754435,181.62,181.57,13.9754435]
[1754928505518,13.9754435,181.64,181.6,13.9754435]
[1754928505858,19.29676207,181.66,181.6,13.9754435]
[1754928506010,13.9754435,181.65,181.6,13.9754435]
[1754928506215,5.50539528,181.64,181.6,13.9754435]
[1754928506440,19.51029432,181.66,181.61,13.9754435]
[1754928506661,0.03,181.66,181.58,13.9754435]
[1754928506860,0.03,181.66,181.65,13.9754435]
[1754928507069,0.03,181.66,181.63,13.9754435]
[1754928507773,5.53487574,181.66,181.63,13.9754435]
[1754928508070,0.03,181.66,181.63,13.9754435]
[1754928508236,0.03,181.66,181.64,13.9754435]
[1754928508568,0.03,181.66,181.61,6.00621248]
[1754928508774,0.03,181.66,181.65,13.9754435]
[1754928509737,0.03,181.66,181.65,57.7354435]
[1754928510242,0.03,181.66,181.65,63.24053571]
[1754928510769,0.03,181.66,181.65,31.50509221]
[1754928511362,0.03,181.66,181.65,39.9754435]
[1754928511534,0.03,181.66,181.64,13.9754435]
[1754928511734,0.03,181.66,181.65,13.9754435]
[1754928511954,0.03,181.66,181.62,5.50590624]
[1754928512267,0.03,181.66,181.65,9.25873049]
[1754928514660,0.03,181.66,181.65,53.27873049]
[1754928514994,0.03,181.66,181.65,58.7838227]
[1754928515351,0.03,181.66,181.65,49.52509221]
[1754928515689,0.03,181.66,181.65,58.7838227]
[1754928515890,0.03,181.68,181.65,58.7838227]
[1754928516054,0.03,181.68,181.67,35.25873049]
[1754928516248,0.03,181.7,181.67,45.06790959]
[1754928516454,0.03,181.7,181.69,9.25873049]
[1754928516750,0.03,181.7,181.69,53.21873049]
[1754928517170,0.03,181.7,181.69,68.32494606]
[1754928517371,0.03,181.72,181.71,35.25873049]
[1754928517755,39.64,181.87,181.71,50.36494606]
[1754928517953,28.504304,181.86,181.81,9.25873049]
[1754928518155,28.504304,181.86,181.72,5.5029716]
[1754928518156,19.24557351,181.86,181.75,43.9]
[1754928518367,19.24557351,181.86,181.81,9.25873049]
[1754928518652,19.24557351,181.86,181.75,43.9]
[1754928519069,13.74683822,181.86,181.81,9.25873049]
[1754928519350,9.25873049,181.84,181.8,9.25873049]
[1754928519763,13.74683822,181.86,181.8,9.25873049]
[1754928519958,9.25873049,181.83,181.78,9.25873049]
[1754928520159,9.25873049,181.83,181.74,5.50231792]
[1754928520160,9.25873049,181.82,181.77,9.25873049]
[1754928520862,13.74683822,181.86,181.71,26.0]
[1754928520863,9.25873049,181.79,181.71,69.82]
[1754928521067,32.99059767,181.87,181.68,5.50418317]
[1754928521068,5.50145788,181.77,181.68,5.50418317]
[1754928521261,5.50145788,181.77,181.73,9.25873049]
[1754928522069,46.74439065,181.84,181.73,9.25873049]
[1754928522274,9.25873049,181.77,181.69,13.751466]
[1754928522483,15.10621557,181.83,181.72,9.25873049]
[1754928522784,9.25873049,181.77,181.72,9.25873049]
[1754928523790,5.50176056,181.76,181.68,86.303008]
[1754928523962,9.25873049,181.75,181.71,9.25873049]
[1754928524163,5.50176056,181.76,181.71,9.25873049]
[1754928524363,5.50176056,181.76,181.74,9.25873049]
[1754928524573,23.01054618,181.8,181.68,84.54277987]
[1754928524774,5.50085263,181.79,181.76,9.25873049]
[1754928525195,5.50085263,181.79,181.75,9.25873049]
[1754928525879,9.25873049,181.8,181.72,6.00286536]
[1754928526076,9.25873049,181.8,181.72,0.5]
[1754928526397,9.25873049,181.74,181.67,17.21981162]
[1754928526604,9.25873049,181.74,181.7,9.25873049]
[1754928526901,9.25873049,181.76,181.72,9.25873049]
[1754928527107,9.25873049,181.76,181.67,22.72428129]
[1754928527288,9.25873049,181.76,181.72,9.25873049]
[1754928527473,9.25873049,181.77,181.67,22.72428129]
[1754928527678,9.25873049,181.76,181.67,22.72428129]
[1754928527878,5.50206327,181.75,181.71,9.25873049]
[1754928528187,5.50206327,181.75,181.67,22.72428129]
[1754928528382,14.76079376,181.75,181.67,17.21981162]
[1754928528582,5.50206327,181.75,181.71,9.25873049]
[1754928528792,5.50206327,181.75,181.73,9.25873049]
[1754928529174,5.50206327,181.75,181.72,9.25873049]
[1754928529375,5.50206327,181.75,181.73,9.25873049]
[1754928529589,5.50145788,181.77,181.74,9.25873049]
[1754928529783,149.25873049,181.81,181.76,9.25873049]
[1754928529986,9.25873049,181.8,181.75,9.25873049]
[1754928530193,0.03,181.79,181.75,9.25873049]
[1754928530694,0.03,181.79,181.76,9.25873049]
[1754928530898,0.03,181.79,181.72,0.06]
[1754928531197,0.03,181.79,181.76,9.25873049]
[1754928531508,0.03,181.79,181.77,9.25873049]
[1754928531801,0.03,181.79,181.78,9.25873049]
[1754928532118,0.03,181.79,181.72,0.06]
[1754928532119,0.03,181.79,181.72,5.56283674]
[1754928532277,0.03,181.79,181.72,0.06]
[1754928532474,0.03,181.79,181.78,9.25873049]
[1754928534015,0.03,181.79,181.76,9.25873049]
[1754928534304,0.03,181.79,181.72,0.06]
[1754928534508,0.03,181.79,181.78,9.25873049]
[1754928537443,0.03,181.79,181.73,0.5]
[1754928537620,0.03,181.79,181.76,9.25873049]
[1754928537931,5.50115524,181.78,181.73,0.5]
[1754928538143,5.50115524,181.78,181.76,9.25873049]
[1754928538337,5.50115524,181.78,181.77,9.25873049]
[1754928538721,5.53085385,181.79,181.77,9.25873049]
[1754928539040,5.53085385,181.79,181.78,9.25873049]
[1754928540126,0.03,181.79,181.73,9.75873]
[1754928540326,0.03,181.79,181.72,0.06]
[1754928540327,9.25873049,181.77,181.72,0.06]
[1754928540538,9.25873049,181.77,181.73,9.25873049]
[1754928540727,9.25873049,181.78,181.73,9.25873049]
[1754928540931,0.03,181.79,181.74,9.25873049]
[1754928541126,0.03,181.79,181.72,0.06]
[1754928541318,9.25873049,181.73,181.72,0.06]
[1754928541527,0.03,181.79,181.72,0.06]
[1754928541722,9.25873049,181.73,181.72,0.06]
[1754928541921,43.84,181.78,181.7,0.06]
[1754928542150,9.25873049,181.73,181.7,0.06]
[1754928542720,19.25510259,181.77,181.7,0.06]
[1754928542939,19.25510259,181.77,181.7,9.31873049]
[1754928543146,19.25510259,181.77,181.73,9.25873049]
[1754928543424,9.25873049,181.74,181.7,0.06]
[1754928543623,19.25510259,181.77,181.7,0.06]
[1754928543841,9.25873049,181.75,181.7,9.31873049]
[1754928544042,5.50236601,181.74,181.7,9.31873049]
[1754928544239,57.55364471,181.77,181.7,0.06]
[1754928544240,154.76076412,181.76,181.7,0.06]
[1754928544738,5.50146655,181.77,181.71,0.5]
[1754928545056,5.5311204,181.79,181.71,0.5]
[1754928545227,14.78985089,181.79,181.71,0.5]
[1754928546239,14.78985089,181.79,181.71,6.00301229]
[1754928546755,9.25873049,181.77,181.71,0.5]
[1754928546924,9.25873049,181.77,181.72,9.25873049]
[1754928547125,9.25873049,181.76,181.71,9.75873049]
[1754928547337,9.25873049,181.74,181.71,0.5]
[1754928547650,9.25873049,181.75,181.71,0.5]
[1754928547948,183.7,181.78,181.71,0.5]
[1754928548153,145.50127,181.78,181.71,6.00323878]
[1754928548671,140.0,181.78,181.71,6.00323878]
[1754928548824,0.03,181.79,181.77,9.25873049]
[1754928549026,0.03,181.79,181.78,9.25873049]
[1754928549648,0.03,181.81,181.78,18.51746098]
[1754928549856,0.03,181.81,181.8,18.51746098]
[1754928550053,0.03,181.81,181.8,9.25873049]
[1754928550231,0.03,181.81,181.8,19.44389968]
[1754928550438,0.03,181.81,181.78,31.50115524]
[1754928550752,0.03,181.81,181.8,13.94334963]
[1754928550960,0.03,181.81,181.73,15.10621557]
[1754928551137,0.03,181.81,181.8,13.94334963]
[1754928551345,0.03,181.81,181.74,26.0]
[1754928551547,0.03,181.81,181.8,13.94334963]
[1754928551898,0.03,181.81,181.74,26.0]
[1754928552181,0.03,181.81,181.78,13.94334963]
[1754928552484,0.03,181.81,181.79,13.94334963]
[1754928552880,0.03,181.81,181.78,13.94334963]
[1754928553055,13.94334963,181.79,181.7,0.06]
[1754928553254,13.94334963,181.77,181.72,13.94334963]
[1754928553556,13.94334963,181.75,181.7,14.00334963]
[1754928553984,13.94334963,181.74,181.7,0.06]
[1754928554153,5.50266879,181.73,181.7,0.06]
[1754928554351,19.44601842,181.73,181.7,0.06]
[1754928554584,13.94334963,181.72,181.7,0.06]
[1754928555095,13.94334963,181.71,181.7,0.06]
[1754928555953,0.72,181.71,181.7,0.06]
[1754928556355,6.22327444,181.71,181.7,0.06]
[1754928556555,146.22327444,181.71,181.7,0.06]
[1754928556749,140.0,181.71,181.7,0.06]
[1754928557588,5.50270002,181.73,181.7,0.06]
[1754928557754,6.22270002,181.73,181.7,0.06]
[1754928557948,14.66334963,181.72,181.7,0.06]
[1754928558467,5.50327444,181.71,181.7,0.06]
[1754928559604,6.22327444,181.71,181.7,0.06]
[1754928559788,19.44639583,181.72,181.7,0.06]
[1754928559987,5.5030462,181.72,181.7,0.06]
[1754928560290,14.66334963,181.71,181.7,0.06]
[1754928560487,20.16662407,181.71,181.7,0.06]
[1754928560853,6.22327444,181.71,181.7,0.06]
[1754928561196,20.16662407,181.71,181.7,0.06]
[1754928561410,5.5030269,181.72,181.7,0.06]
[1754928561559,19.44637653,181.72,181.7,0.06]
[1754928561762,0.72,181.71,181.7,0.06]
[1754928562396,6.22327444,181.71,181.7,0.06]
[1754928562770,6.22327444,181.71,181.68,0.06]
[1754928563004,13.94334963,181.69,181.68,0.06]
[1754928563502,14.66334963,181.69,181.68,0.06]
[1754928563706,14.66334963,181.69,181.67,0.06]
[1754928563867,58.20334963,181.68,181.66,0.06]
[1754928564065,13.94334963,181.67,181.65,1e-08]
[1754928564270,13.94334963,181.66,181.56,0.06]
[1754928564573,19.98676207,181.66,181.56,0.06]
[1754928564904,13.94334963,181.58,181.56,0.06]
[1754928565496,0.72,181.57,181.56,0.06]
[1754928565690,0.72,181.6,181.56,0.06]
[1754928566025,0.72,181.59,181.56,0.06]
[1754928566233,14.66334963,181.59,181.56,0.06]
[1754928566511,145.50721445,181.58,181.56,0.06]
[1754928566869,14.66334963,181.57,181.56,0.06]
[1754928567070,0.72,181.57,181.56,0.06]
[1754928567369,14.66334963,181.57,181.56,0.06]
[1754928567568,14.66334963,181.57,181.54,0.06]
[1754928567780,44.4,181.56,181.54,0.06]
[1754928567985,13.94334963,181.55,181.54,0.06]
[1754928568174,0.72,181.55,181.54,0.06]
[1754928568592,49.22808922,181.56,181.54,0.06]
[1754928569391,43.72,181.56,181.54,14.00334963]
[1754928569587,49.2278279,181.56,181.54,0.06]
[1754928570088,14.60334963,181.55,181.54,0.06]
[1754928570274,0.66,181.55,181.52,1e-08]
[1754928570471,88.99738066,181.56,181.47,1e-08]
[1754928570472,5.50964187,181.5,181.47,1e-08]
[1754928570711,13.94334963,181.48,181.47,1e-08]
[1754928571067,14.60334963,181.48,181.47,1e-08]
[1754928571867,14.60334963,181.48,181.45,1e-08]
[1754928572073,44.4,181.49,181.45,1e-08]
[1754928572074,29.0495652,181.46,181.45,1e-08]
[1754928572273,59.0495652,181.46,181.45,1e-08]
[1754928572469,109.76042158,181.46,181.45,1e-08]
[1754928572875,13.94334963,181.44,181.41,1e-08]
[1754928573074,0.66,181.45,181.4,1e-08]
[1754928573270,140.0,181.42,181.4,1e-08]
[1754928573488,59.64621557,181.41,181.38,1e-08]
[1754928573692,13.94334963,181.39,181.36,1e-08]
[1754928573906,13.94334963,181.37,181.36,1e-08]
[1754928574398,44.52,181.37,181.36,1e-08]
[1754928574615,50.03298307,181.39,181.36,14.60334964]
[1754928574818,44.52,181.4,181.38,13.94334963]
[1754928575110,44.52,181.41,181.39,0.66]
[1754928575272,44.52,181.45,181.4,14.60334963]
[1754928575475,13.77411675,181.5,181.41,0.66]
[1754928575476,44.5,181.48,181.41,0.66]
[1754928575976,44.5,181.48,181.38,26.0]
[1754928575977,13.94334963,181.43,181.38,26.66]
[1754928576312,44.54,181.45,181.39,0.66]
[1754928576615,19.45569961,181.42,181.39,0.66]
[1754928576899,19.45569961,181.42,181.36,14.60334964]
[1754928576900,13.94334963,181.4,181.36,14.60334964]
[1754928577104,5.51234998,181.42,181.37,0.66]
[1754928577303,13.94334963,181.41,181.37,0.66]
[1754928577488,13.94334963,181.42,181.38,0.66]
[1754928577688,44.54,181.45,181.4,13.94334963]
[1754928577888,0.66,181.48,181.36,5.51378193]
[1754928577889,13.94334963,181.48,181.44,13.94334963]
[1754928578122,13.94334963,181.48,181.44,0.66]
[1754928578282,14.60335,181.52,181.46,13.94334963]
[1754928578481,49.96875095,181.53,181.49,13.94334963]
[1754928578716,44.48,181.54,181.44,13.94334963]
[1754928579011,44.48,181.54,181.5,14.60334963]
[1754928579205,44.48,181.54,181.51,14.60334963]
[1754928579415,14.60335,181.57,181.52,0.66]
[1754928579582,13.94334963,181.56,181.48,26.0]
[1754928582404,159.44998078,181.6,181.56,0.66]
[1754928582598,159.44998078,181.6,181.56,14.60334963]
[1754928582804,49.84632005,181.61,181.58,13.94334963]
[1754928583109,5.50632005,181.61,181.58,14.60334963]
[1754928583680,5.50632005,181.61,181.58,13.94334963]
[1754928584315,5.50632005,181.61,181.57,13.94334963]
[1754928584819,19.44966968,181.61,181.56,14.60334963]
[1754928585007,13.94334963,181.59,181.54,39.94334963]
[1754928585311,5.50632005,181.61,181.58,13.94334963]
[1754928585488,5.50632005,181.61,181.59,14.60334963]
[1754928585689,5.53632005,181.61,181.58,13.94334963]
[1754928586016,5.53632005,181.61,181.57,13.94334963]
[1754928586194,13.94334963,181.59,181.55,13.94334963]
[1754928586509,13.94334963,181.59,181.54,39.94334963]
[1754928586691,13.94334963,181.6,181.55,0.66]
[1754928586892,13.94334963,181.59,181.55,0.66]
[1754928587227,13.94334963,181.6,181.54,26.66]
[1754928587382,19.30208184,181.61,181.51,0.66]
[1754928587587,19.30208184,181.61,181.51,14.60334963]
[1754928587588,0.66,181.6,181.51,14.60334963]
[1754928587902,19.45227006,181.53,181.48,40.60334963]
[1754928588090,19.45227006,181.53,181.49,0.66]
[1754928588286,5.50892043,181.53,181.46,1.16]
[1754928588486,13.94334963,181.52,181.47,14.60334963]
[1754928588686,5.50892043,181.53,181.48,0.66]
[1754928588921,19.45176172,181.55,181.5,13.94334963]
[1754928589214,5.50841209,181.55,181.5,13.94334963]
[1754928589381,140.0,181.54,181.51,14.60334963]
[1754928589585,140.0,181.54,181.52,0.66]
[1754928589801,140.0,181.54,181.5,13.94334963]
[1754928590008,159.45196176,181.54,181.49,13.94334963]
[1754928590209,0.66,181.53,181.46,1.16]
[1754928590508,0.66,181.53,181.43,14.60334963]
[1754928590707,0.66,181.53,181.43,0.66]
[1754928590915,13.94334963,181.47,181.43,0.66]
[1754928591420,13.94334963,181.45,181.4,0.66]
[1754928591583,0.66,181.51,181.44,13.94334963]
[1754928591788,13.94334963,181.5,181.45,13.94334963]
[1754928592002,19.45314661,181.5,181.46,14.60334963]
[1754928592300,13.94334963,181.49,181.44,13.94334963]
[1754928592799,13.94334963,181.49,181.45,0.66]
[1754928593315,19.45314661,181.5,181.45,14.60334963]
[1754928593517,5.50979698,181.5,181.45,13.94334963]
[1754928593720,44.02,181.51,181.47,13.94334963]
[1754928593721,5.50940923,181.51,181.47,13.94334963]
[1754928593887,5.50879587,181.53,181.5,13.94334963]